[Event "*** Titled Tuesday Blitz"]
[Site "Chess.com"]
[Date "2020.01.07"]
[Round "2"]
[White "mersad_98"]
[Black "volcanoexplorer"]
[Result "1/2-1/2"]
[WhiteElo "2750"]
[BlackElo "2548"]
[TimeControl "180+2"]
[EndTime "13:30:21 PST"]
[Termination "Game drawn by agreement"]

1. e4 {[%clk 0:03:01.9]} 1... e5 {[%clk 0:03:01.1]} 2. Nf3 {[%clk 0:03:03.3]}
2... Nc6 {[%clk 0:03:02.5]} 3. Bb5 {[%clk 0:03:04.8]} 3... a6 {[%clk 0:03:03.8]}
4. Ba4 {[%clk 0:03:05.9]} 4... Nf6 {[%clk 0:03:05.1]} 5. O-O {[%clk 0:03:04.9]}
5... Be7 {[%clk 0:03:06]} 6. Re1 {[%clk 0:03:05.4]} 6... b5 {[%clk 0:03:07.1]}
7. Bb3 {[%clk 0:03:06.8]} 7... O-O {[%clk 0:03:08.8]} 8. c3 {[%clk 0:03:07.7]}
8... d6 {[%clk 0:03:08.5]} 9. h3 {[%clk 0:03:08.1]} 9... Nb8 {[%clk 0:03:09.1]}
10. d4 {[%clk 0:03:09.1]} 10... Nbd7 {[%clk 0:03:10.4]} 11. Nbd2 {[%clk
0:03:10.7]} 11... c5 {[%clk 0:03:11.7]} 12. Nf1 {[%clk 0:02:57]} 12... Qc7
{[%clk 0:03:11.2]} 13. Ng3 {[%clk 0:02:56.4]} 13... Rd8 {[%clk 0:03:03.6]} 14.
Nf5 {[%clk 0:02:23.3]} 14... Bf8 {[%clk 0:03:00.4]} 15. Bg5 {[%clk 0:01:26.2]}
15... h6 {[%clk 0:02:19.8]} 16. Bh4 {[%clk 0:01:19.9]} 16... c4 {[%clk
0:02:06.4]} 17. Bc2 {[%clk 0:01:20.5]} 17... g6 {[%clk 0:01:58.7]} 18. Ne3
{[%clk 0:01:19.4]} 18... Re8 {[%clk 0:01:52]} 19. d5 {[%clk 0:00:28.6]} 19...
Bg7 {[%clk 0:01:48.3]} 20. Qd2 {[%clk 0:00:29.3]} 20... Nc5 {[%clk 0:01:42.3]}
21. Bxf6 {[%clk 0:00:27.7]} 21... Bxf6 {[%clk 0:01:44.2]} 22. Ng4 {[%clk
0:00:29.2]} 22... Bxg4 {[%clk 0:01:44.9]} 23. hxg4 {[%clk 0:00:27.2]} 23... Kg7
{[%clk 0:01:45.8]} 24. b4 {[%clk 0:00:27.4]} 24... cxb3 {[%clk 0:01:42.3]} 25.
axb3 {[%clk 0:00:29.3]} 25... Rec8 {[%clk 0:01:41.2]} 26. g3 {[%clk 0:00:28.1]}
26... a5 {[%clk 0:01:34.8]} 27. Kg2 {[%clk 0:00:28.7]} 27... a4 {[%clk
0:01:25.1]} 28. bxa4 {[%clk 0:00:29.3]} 28... bxa4 {[%clk 0:01:18.9]} 29. Rh1
{[%clk 0:00:30.7]} 29... g5 {[%clk 0:01:13.2]} 30. Ra2 {[%clk 0:00:22]} 30...
Nb3 {[%clk 0:01:00.5]} 31. Bxb3 {[%clk 0:00:19.9]} 31... axb3 {[%clk 0:01:02.4]}
32. Rxa8 {[%clk 0:00:21]} 32... Rxa8 {[%clk 0:01:04.3]} 33. Rb1 {[%clk
0:00:22.2]} 33... Qc4 {[%clk 0:00:46.5]} 34. Qe3 {[%clk 0:00:21.7]} 34... Rb8
{[%clk 0:00:23.3]} 35. Nd2 {[%clk 0:00:21.6]} 35... Qa4 {[%clk 0:00:24.6]} 36.
c4 {[%clk 0:00:20.5]} 36... b2 {[%clk 0:00:23.3]} 37. Qc3 {[%clk 0:00:21.8]}
37... Bd8 {[%clk 0:00:22.4]} 38. Rxb2 {[%clk 0:00:19.6]} 38... Ba5 {[%clk
0:00:19]} 39. Qc2 {[%clk 0:00:21.1]} 39... Qxc2 {[%clk 0:00:16.5]} 40. Rxc2
{[%clk 0:00:23]} 40... Bxd2 {[%clk 0:00:09.2]} 41. Rxd2 {[%clk 0:00:24.9]} 41...
Rc8 {[%clk 0:00:10.8]} 42. Rc2 {[%clk 0:00:26.2]} 42... Kf6 {[%clk 0:00:12.1]}
43. Kf3 {[%clk 0:00:26]} 43... Ke7 {[%clk 0:00:13.5]} 44. Ke3 {[%clk 0:00:27.6]}
44... Kd7 {[%clk 0:00:14.6]} 45. Kd3 {[%clk 0:00:29.2]} 45... Ra8 {[%clk
0:00:15.7]} 46. c5 {[%clk 0:00:27.3]} 46... dxc5 {[%clk 0:00:06.7]} 47. Rxc5
{[%clk 0:00:29.2]} 47... Ra3+ {[%clk 0:00:08.4]} 48. Ke2 {[%clk 0:00:30.5]}
48... Ra2+ {[%clk 0:00:09.8]} 49. Kf3 {[%clk 0:00:32.1]} 49... Ra3+ {[%clk
0:00:11.4]} 50. Kg2 {[%clk 0:00:33.7]} 50... Ra4 {[%clk 0:00:13]} 51. Kf3 {[%clk
0:00:12.1]} 51... Ra3+ {[%clk 0:00:14]} 52. Ke2 {[%clk 0:00:13.7]} 52... Ra2+
{[%clk 0:00:15.2]} 53. Ke3 {[%clk 0:00:14.6]} 53... Ra3+ {[%clk 0:00:16.6]} 54.
Kd2 {[%clk 0:00:16.1]} 54... Ra2+ {[%clk 0:00:17.6]} 55. Rc2 {[%clk 0:00:16.9]}
55... Ra4 {[%clk 0:00:19]} 56. Kd3 {[%clk 0:00:18.1]} 56... Ra3+ {[%clk
0:00:20.3]} 57. Rc3 {[%clk 0:00:19.5]} 57... Ra2 {[%clk 0:00:21.9]} 58. Ke3
{[%clk 0:00:21.1]} 58... Ra4 {[%clk 0:00:21.8]} 59. Rc6 {[%clk 0:00:21.7]} 59...
Ra3+ {[%clk 0:00:22.3]} 60. Ke2 {[%clk 0:00:23]} 60... Ra2+ {[%clk 0:00:23.5]}
61. Kf3 {[%clk 0:00:23.1]} 61... Ra3+ {[%clk 0:00:24.8]} 62. Kg2 {[%clk
0:00:21.5]} 62... Ra4 {[%clk 0:00:25]} 63. Kf3 {[%clk 0:00:10.9]} 63... Ra3+
{[%clk 0:00:25.9]} 64. Ke2 {[%clk 0:00:12.3]} 64... Ra2+ {[%clk 0:00:27.2]} 65.
Ke1 {[%clk 0:00:11.9]} 65... Ra1+ {[%clk 0:00:28.1]} 66. Kd2 {[%clk 0:00:12.7]}
66... Ra2+ {[%clk 0:00:29.4]} 67. Rc2 {[%clk 0:00:14.2]} 67... Ra4 {[%clk
0:00:30.6]} 68. Kd3 {[%clk 0:00:15.4]} 68... Ra3+ {[%clk 0:00:31.5]} 69. Rc3
{[%clk 0:00:17.1]} 69... Ra2 {[%clk 0:00:33.1]} 70. Ke3 {[%clk 0:00:18.7]} 70...
Ra4 {[%clk 0:00:34.1]} 71. f4 {[%clk 0:00:20.2]} 71... gxf4+ {[%clk 0:00:09.6]}
72. gxf4 {[%clk 0:00:22.1]} 72... exf4+ {[%clk 0:00:09.8]} 73. Kxf4 {[%clk
0:00:24]} 73... Ra1 {[%clk 0:00:11.1]} 74. Ke5 {[%clk 0:00:22.8]} 74... Rg1
{[%clk 0:00:10.3]} 75. Rf3 {[%clk 0:00:23.5]} 75... Ke8 {[%clk 0:00:08]} 76. Rf4
{[%clk 0:00:22.9]} 76... Ra1 {[%clk 0:00:05]} 77. Kf6 {[%clk 0:00:23.8]} 77...
Ra6+ {[%clk 0:00:05.6]} 78. Kf5 {[%clk 0:00:25.2]} 78... Ra1 {[%clk 0:00:05.3]}
79. Rf2 {[%clk 0:00:25.7]} 79... Ra6 {[%clk 0:00:06.4]} 80. Rb2 {[%clk
0:00:26.6]} 80... Ke7 {[%clk 0:00:06.9]} 81. Rb7+ {[%clk 0:00:27.6]} 81... Ke8
{[%clk 0:00:08.5]} 82. e5 {[%clk 0:00:28.7]} 82... Rg6 {[%clk 0:00:09.5]} 83. e6
{[%clk 0:00:28.1]} 83... Rg5+ {[%clk 0:00:10.9]} 84. Kf6 {[%clk 0:00:27.9]}
84... Rg6+ {[%clk 0:00:06.2]} 85. Ke5 {[%clk 0:00:23.5]} 85... fxe6 {[%clk
0:00:06.7]} 86. Rb8+ {[%clk 0:00:19.1]} 86... Kd7 {[%clk 0:00:03.8]} 87. dxe6+
{[%clk 0:00:18]} 87... Rxe6+ {[%clk 0:00:03.8]} 88. Kf5 {[%clk 0:00:19.9]} 88...
Rc6 {[%clk 0:00:05.3]} 89. Rh8 {[%clk 0:00:19.3]} 89... Ke7 {[%clk 0:00:06.2]}
90. Rh7+ {[%clk 0:00:18]} 90... Kf8 {[%clk 0:00:07.3]} 91. Rd7 {[%clk
0:00:18.7]} 91... Kg8 {[%clk 0:00:08.5]} 92. Rd5 {[%clk 0:00:19.7]} 92... Kg7
{[%clk 0:00:09.7]} 93. Re5 {[%clk 0:00:21.3]} 93... Rf6+ {[%clk 0:00:10.6]} 94.
Ke4 {[%clk 0:00:22.8]} 94... Kg6 {[%clk 0:00:12.3]} 95. Ra5 {[%clk 0:00:23.1]}
95... Re6+ {[%clk 0:00:12.5]} 96. Kf4 {[%clk 0:00:24.3]} 96... Rf6+ {[%clk
0:00:14.1]} 97. Kg3 {[%clk 0:00:25.8]} 97... Rb6 {[%clk 0:00:15.1]} 98. Kh4
{[%clk 0:00:27.7]} 98... Rf6 {[%clk 0:00:16.4]} 99. Ra8 {[%clk 0:00:29.1]} 99...
Rb6 {[%clk 0:00:17.3]} 100. Rg8+ {[%clk 0:00:30.6]} 100... Kh7 {[%clk
0:00:18.6]} 101. Rd8 {[%clk 0:00:32]} 101... Kg6 {[%clk 0:00:20]} 102. Rc8
{[%clk 0:00:33.6]} 102... Rf6 {[%clk 0:00:21.4]} 103. Rc5 {[%clk 0:00:35.1]}
103... Re6 {[%clk 0:00:22.7]} 104. Rc4 {[%clk 0:00:36.4]} 104... Rf6 {[%clk
0:00:24.2]} 105. Re4 {[%clk 0:00:37.6]} 105... Rb6 {[%clk 0:00:25]} 106. Rf4
{[%clk 0:00:38.5]} 106... Rf6 {[%clk 0:00:26.1]} 1/2-1/2

[Event "*** Titled Tuesday Blitz"]
[Site "Chess.com"]
[Date "2020.01.07"]
[Round "3"]
[White "shanemelaughcm"]
[Black "RaunakSadhwani2005"]
[Result "0-1"]
[WhiteElo "2278"]
[BlackElo "2736"]
[TimeControl "180+2"]
[EndTime "13:33:22 PST"]
[Termination "RaunakSadhwani2005 won by resignation"]

1. c4 {[%clk 0:03:01.7]} 1... Nf6 {[%clk 0:02:59.5]} 2. Nc3 {[%clk 0:03:02.6]}
2... g6 {[%clk 0:03:01.4]} 3. d4 {[%clk 0:03:03.4]} 3... Bg7 {[%clk 0:03:02.3]}
4. e4 {[%clk 0:03:05]} 4... d6 {[%clk 0:03:03.7]} 5. Be2 {[%clk 0:03:06.6]} 5...
O-O {[%clk 0:03:04.8]} 6. Be3 {[%clk 0:03:07.9]} 6... c5 {[%clk 0:03:05.7]} 7.
dxc5 {[%clk 0:03:06.9]} 7... dxc5 {[%clk 0:03:04.8]} 8. Qxd8 {[%clk 0:03:00]}
8... Rxd8 {[%clk 0:03:06.7]} 9. Bxc5 {[%clk 0:03:01.5]} 9... Nc6 {[%clk
0:03:08.1]} 10. Nf3 {[%clk 0:02:54]} 10... Bg4 {[%clk 0:03:09.4]} 11. O-O {[%clk
0:02:53.6]} 11... Rac8 {[%clk 0:03:10.6]} 12. Rfd1 {[%clk 0:02:39.4]} 12...
Rxd1+ {[%clk 0:03:10.2]} 13. Rxd1 {[%clk 0:02:41.3]} 13... b6 {[%clk 0:03:10.4]}
14. Ba3 {[%clk 0:02:41.5]} 14... Nd7 {[%clk 0:03:06.6]} 15. Nd5 {[%clk
0:02:35.8]} 15... Nc5 {[%clk 0:03:04.2]} 16. Bxc5 {[%clk 0:02:32]} 16... bxc5
{[%clk 0:03:05.7]} 17. b3 {[%clk 0:02:23.5]} 17... e6 {[%clk 0:03:04.8]} 18. Nc3
{[%clk 0:02:19.5]} 18... Bxc3 {[%clk 0:03:03]} 19. Nd4 {[%clk 0:02:16.5]} 19...
Bxd4 {[%clk 0:02:59.5]} 20. Bxg4 {[%clk 0:02:17.9]} 20... a5 {[%clk 0:02:59.1]}
21. Kf1 {[%clk 0:02:19.1]} 21... a4 {[%clk 0:03:01]} 22. f3 {[%clk 0:02:19.7]}
22... axb3 {[%clk 0:03:01.5]} 23. axb3 {[%clk 0:02:21.6]} 23... Rb8 {[%clk
0:03:03.4]} 24. Rb1 {[%clk 0:02:22.4]} 24... Na5 {[%clk 0:03:04.8]} 0-1

[Event "*** Titled Tuesday Blitz"]
[Site "Chess.com"]
[Date "2020.01.07"]
[Round "3"]
[White "FredyMatsuura"]
[Black "Pilopa"]
[Result "0-1"]
[WhiteElo "2232"]
[BlackElo "2547"]
[TimeControl "180+2"]
[EndTime "13:33:26 PST"]
[Termination "Pilopa won by resignation"]

1. d4 {[%clk 0:03:01.9]} 1... Nf6 {[%clk 0:02:59.4]} 2. c4 {[%clk 0:03:02.2]}
2... c5 {[%clk 0:02:58.5]} 3. d5 {[%clk 0:03:02.9]} 3... b5 {[%clk 0:02:59.7]}
4. Nf3 {[%clk 0:03:03.9]} 4... g6 {[%clk 0:02:58.7]} 5. a4 {[%clk 0:03:03.5]}
5... b4 {[%clk 0:02:58.6]} 6. Nbd2 {[%clk 0:03:03.7]} 6... Bg7 {[%clk
0:02:59.1]} 7. e4 {[%clk 0:03:04.5]} 7... d6 {[%clk 0:03:00.2]} 8. Bd3 {[%clk
0:03:04.1]} 8... O-O {[%clk 0:03:01.7]} 9. h3 {[%clk 0:03:05.2]} 9... e5 {[%clk
0:03:01.9]} 10. dxe6 {[%clk 0:03:05.6]} 10... Bxe6 {[%clk 0:03:02]} 11. Ng5
{[%clk 0:03:05.4]} 11... Bd7 {[%clk 0:02:54.1]} 12. f4 {[%clk 0:03:05.5]} 12...
Nh5 {[%clk 0:02:54.1]} 13. O-O {[%clk 0:03:04]} 13... Nxf4 {[%clk 0:02:49.7]}
14. Rxf4 {[%clk 0:02:56.3]} 14... Qxg5 {[%clk 0:02:49.8]} 15. Rf1 {[%clk
0:02:48.5]} 15... Bxh3 {[%clk 0:02:42.2]} 16. Qf3 {[%clk 0:02:44.6]} 16... Bg4
{[%clk 0:02:42.2]} 17. Qf4 {[%clk 0:02:40.1]} 17... Bd4+ {[%clk 0:02:18.4]} 18.
Kh1 {[%clk 0:02:37.5]} 18... Qh4+ {[%clk 0:02:18.5]} 19. Qh2 {[%clk 0:02:37]}
19... Qxh2+ {[%clk 0:02:17.8]} 20. Kxh2 {[%clk 0:02:38.9]} 20... Nc6 {[%clk
0:02:18.9]} 0-1

[Event "*** Titled Tuesday Blitz"]
[Site "Chess.com"]
[Date "2020.01.07"]
[Round "3"]
[White "Dhaydon19"]
[Black "Er_is_geen_hoop_meer"]
[Result "0-1"]
[WhiteElo "2684"]
[BlackElo "2416"]
[TimeControl "180+2"]
[EndTime "13:33:56 PST"]
[Termination "Er_is_geen_hoop_meer won by resignation"]

1. d4 {[%clk 0:03:01.7]} 1... f5 {[%clk 0:03:00.5]} 2. Bg5 {[%clk 0:03:01.6]}
2... h6 {[%clk 0:03:01.6]} 3. Bh4 {[%clk 0:03:02]} 3... g5 {[%clk 0:03:03.2]} 4.
Bg3 {[%clk 0:03:01.4]} 4... Nf6 {[%clk 0:02:59.5]} 5. e3 {[%clk 0:03:01.5]} 5...
Bg7 {[%clk 0:02:59.4]} 6. Be5 {[%clk 0:03:01.7]} 6... d6 {[%clk 0:03:00.2]} 7.
Bxf6 {[%clk 0:03:02.4]} 7... Bxf6 {[%clk 0:03:02.1]} 8. Qh5+ {[%clk 0:03:01.9]}
8... Kf8 {[%clk 0:03:03.3]} 9. Bc4 {[%clk 0:03:01.4]} 9... d5 {[%clk 0:03:04.6]}
10. Bd3 {[%clk 0:03:02]} 10... c5 {[%clk 0:03:05.9]} 11. c3 {[%clk 0:03:00.9]}
11... Nc6 {[%clk 0:03:04.9]} 12. h4 {[%clk 0:02:58.7]} 12... Qb6 {[%clk
0:02:51.7]} 13. Nd2 {[%clk 0:02:31.1]} 13... Qxb2 {[%clk 0:02:51.3]} 14. Rb1
{[%clk 0:02:30]} 14... Qxc3 {[%clk 0:02:52.6]} 15. Ke2 {[%clk 0:02:30.1]} 15...
c4 {[%clk 0:02:51]} 16. Bxc4 {[%clk 0:01:54.1]} 16... dxc4 {[%clk 0:02:52.9]}
17. Ngf3 {[%clk 0:01:52.3]} 17... Qd3+ {[%clk 0:02:52.1]} 18. Kd1 {[%clk
0:01:52.6]} 18... c3 {[%clk 0:02:51.8]} 19. Rb3 {[%clk 0:01:53.1]} 19... Be6
{[%clk 0:02:50.9]} 20. hxg5 {[%clk 0:01:49.7]} 20... Bxb3+ {[%clk 0:02:50]} 21.
axb3 {[%clk 0:01:51.6]} 21... hxg5 {[%clk 0:02:48.2]} 22. Qxh8+ {[%clk
0:01:51.7]} 22... Bxh8 {[%clk 0:02:50.1]} 23. Rxh8+ {[%clk 0:01:53.3]} 23... Kg7
{[%clk 0:02:51.6]} 24. Rxa8 {[%clk 0:01:55.2]} 24... g4 {[%clk 0:02:52.8]} 0-1

[Event "*** Titled Tuesday Blitz"]
[Site "Chess.com"]
[Date "2020.01.07"]
[Round "3"]
[White "masrahi"]
[Black "lupta_robin"]
[Result "0-1"]
[WhiteElo "1995"]
[BlackElo "2528"]
[TimeControl "180+2"]
[EndTime "13:34:00 PST"]
[Termination "lupta_robin won by checkmate"]

1. e4 {[%clk 0:02:55]} 1... g6 {[%clk 0:03:00.5]} 2. d4 {[%clk 0:02:55.9]} 2...
Nf6 {[%clk 0:03:01.2]} 3. Nc3 {[%clk 0:02:56.9]} 3... d5 {[%clk 0:03:01.5]} 4.
e5 {[%clk 0:02:57.6]} 4... Ne4 {[%clk 0:03:02.6]} 5. Nxe4 {[%clk 0:02:57.1]}
5... dxe4 {[%clk 0:03:03.6]} 6. Qe2 {[%clk 0:02:55]} 6... Qxd4 {[%clk
0:03:01.7]} 7. e6 {[%clk 0:02:50.4]} 7... Bxe6 {[%clk 0:02:28.7]} 8. Qb5+ {[%clk
0:02:46.3]} 8... Nc6 {[%clk 0:02:17.6]} 9. Qxb7 {[%clk 0:02:45.7]} 9... Qb4+
{[%clk 0:02:19]} 10. Qxb4 {[%clk 0:02:44]} 10... Nxb4 {[%clk 0:02:20.9]} 11. Kd2
{[%clk 0:02:42.1]} 11... O-O-O+ {[%clk 0:02:05.9]} 12. Kc3 {[%clk 0:02:42.6]}
12... a5 {[%clk 0:01:48]} 13. Bc4 {[%clk 0:02:29.6]} 13... Bg7+ {[%clk
0:01:47.6]} 14. Kb3 {[%clk 0:02:29.9]} 14... Bxc4+ {[%clk 0:01:41.9]} 15. Kxc4
{[%clk 0:02:30.5]} 15... Rd4+ {[%clk 0:01:43]} 16. Kb3 {[%clk 0:02:28.9]} 16...
a4+ {[%clk 0:01:43.4]} 17. Kc3 {[%clk 0:02:25.1]} 17... Nd5# {[%clk 0:01:42]}
0-1

[Event "*** Titled Tuesday Blitz"]
[Site "Chess.com"]
[Date "2020.01.07"]
[Round "3"]
[White "Gareth-Bale11"]
[Black "Gogolev_Artemy"]
[Result "1-0"]
[WhiteElo "2723"]
[BlackElo "2448"]
[TimeControl "180+2"]
[EndTime "13:34:03 PST"]
[Termination "Gareth-Bale11 won by resignation"]

1. d4 {[%clk 0:03:01.9]} 1... Nf6 {[%clk 0:02:59.3]} 2. c4 {[%clk 0:03:02.5]}
2... e6 {[%clk 0:02:59.2]} 3. Nf3 {[%clk 0:03:03.6]} 3... d5 {[%clk 0:02:59.3]}
4. Nc3 {[%clk 0:03:03.2]} 4... Bb4 {[%clk 0:02:56.6]} 5. Bg5 {[%clk 0:03:02.6]}
5... c5 {[%clk 0:02:53]} 6. cxd5 {[%clk 0:02:58.6]} 6... exd5 {[%clk 0:02:49.8]}
7. e3 {[%clk 0:02:54.3]} 7... h6 {[%clk 0:02:43.7]} 8. Bxf6 {[%clk 0:02:44.2]}
8... Qxf6 {[%clk 0:02:45.6]} 9. Qb3 {[%clk 0:02:39.2]} 9... Be6 {[%clk
0:02:35.4]} 10. dxc5 {[%clk 0:02:17.9]} 10... Nc6 {[%clk 0:02:30]} 11. Bb5
{[%clk 0:02:16.5]} 11... Bxc5 {[%clk 0:02:19.7]} 12. O-O {[%clk 0:02:08.1]}
12... O-O {[%clk 0:02:04]} 13. Qa4 {[%clk 0:01:56.5]} 13... d4 {[%clk
0:01:51.6]} 14. Ne4 {[%clk 0:01:56.5]} 14... Qe5 {[%clk 0:01:51.4]} 15. Nxe5
{[%clk 0:01:56.9]} 1-0

[Event "*** Titled Tuesday Blitz"]
[Site "Chess.com"]
[Date "2020.01.07"]
[Round "3"]
[White "szefru"]
[Black "Elyon2000"]
[Result "1-0"]
[WhiteElo "2138"]
[BlackElo "2328"]
[TimeControl "180+2"]
[EndTime "13:34:09 PST"]
[Termination "szefru won by resignation"]

1. b3 {[%clk 0:03:01.9]} 1... e5 {[%clk 0:03:00.5]} 2. Bb2 {[%clk 0:03:03.2]}
2... Nc6 {[%clk 0:03:02.4]} 3. g3 {[%clk 0:03:04.5]} 3... Nf6 {[%clk 0:03:03.3]}
4. Bg2 {[%clk 0:03:05.9]} 4... d5 {[%clk 0:03:04.9]} 5. e3 {[%clk 0:03:07.1]}
5... Bd6 {[%clk 0:03:06.1]} 6. Ne2 {[%clk 0:03:08.5]} 6... O-O {[%clk
0:03:06.9]} 7. O-O {[%clk 0:03:09.8]} 7... h5 {[%clk 0:03:07.1]} 8. h4 {[%clk
0:03:09.9]} 8... Bg4 {[%clk 0:03:07.7]} 9. f3 {[%clk 0:03:09.3]} 9... Bf5 {[%clk
0:03:08.3]} 10. d3 {[%clk 0:03:09.3]} 10... Qd7 {[%clk 0:03:08.5]} 11. Kh2
{[%clk 0:03:07.3]} 11... Rfe8 {[%clk 0:03:06.9]} 12. e4 {[%clk 0:03:07.7]} 12...
Be6 {[%clk 0:03:05.6]} 13. Nd2 {[%clk 0:03:05.8]} 13... Rad8 {[%clk 0:03:07]}
14. a3 {[%clk 0:02:56.5]} 14... Bc5 {[%clk 0:03:08.3]} 15. b4 {[%clk 0:02:54.5]}
15... Bb6 {[%clk 0:03:09.6]} 16. b5 {[%clk 0:02:51.8]} 16... Nd4 {[%clk
0:03:06.2]} 17. Nxd4 {[%clk 0:02:50.7]} 17... exd4 {[%clk 0:03:08.1]} 18. e5
{[%clk 0:02:48.8]} 18... Nh7 {[%clk 0:03:09.2]} 19. a4 {[%clk 0:02:46]} 19...
Bf5 {[%clk 0:03:02.2]} 20. Re1 {[%clk 0:02:37.1]} 20... Nf8 {[%clk 0:03:01.9]}
21. Nb3 {[%clk 0:02:33.7]} 21... Ng6 {[%clk 0:02:52]} 22. a5 {[%clk 0:02:27.9]}
22... Qxb5 {[%clk 0:02:49.8]} 23. axb6 {[%clk 0:02:28.2]} 23... axb6 {[%clk
0:02:51.7]} 24. Bxd4 {[%clk 0:02:22.4]} 24... c5 {[%clk 0:02:51.2]} 25. Bf2
{[%clk 0:02:20.3]} 25... d4 {[%clk 0:02:50.7]} 26. f4 {[%clk 0:02:10]} 26... Bg4
{[%clk 0:02:51.8]} 27. Bf3 {[%clk 0:02:07.9]} 27... Bxf3 {[%clk 0:02:52.9]} 28.
Qxf3 {[%clk 0:02:08.7]} 1-0

[Event "*** Titled Tuesday Blitz"]
[Site "Chess.com"]
[Date "2020.01.07"]
[Round "3"]
[White "Quiet_Desperation"]
[Black "machinegun1"]
[Result "1-0"]
[WhiteElo "2374"]
[BlackElo "2554"]
[TimeControl "180+2"]
[EndTime "13:34:53 PST"]
[Termination "Quiet_Desperation won by resignation"]

1. d4 {[%clk 0:03:01.9]} 1... Nf6 {[%clk 0:03:00.6]} 2. c4 {[%clk 0:03:01.7]}
2... e6 {[%clk 0:02:55.9]} 3. Nf3 {[%clk 0:03:02.6]} 3... d5 {[%clk 0:02:57]} 4.
Nc3 {[%clk 0:03:02.9]} 4... c5 {[%clk 0:02:57.9]} 5. cxd5 {[%clk 0:02:59.9]}
5... cxd4 {[%clk 0:02:53.6]} 6. Qxd4 {[%clk 0:02:56.6]} 6... Nxd5 {[%clk
0:02:54.2]} 7. e4 {[%clk 0:02:52.7]} 7... Nc6 {[%clk 0:02:55.3]} 8. Bb5 {[%clk
0:02:51.9]} 8... Nxc3 {[%clk 0:02:55.4]} 9. Qxc3 {[%clk 0:02:52.2]} 9... Bd7
{[%clk 0:02:55.6]} 10. O-O {[%clk 0:02:47.8]} 10... Rc8 {[%clk 0:02:56.5]} 11.
Rd1 {[%clk 0:02:45.4]} 11... Qf6 {[%clk 0:02:53.3]} 12. e5 {[%clk 0:02:38.6]}
12... Qe7 {[%clk 0:02:47.7]} 13. Bg5 {[%clk 0:02:32.2]} 13... Qc5 {[%clk
0:02:48.4]} 14. Qd3 {[%clk 0:02:26.4]} 14... Rc7 {[%clk 0:02:45.7]} 15. Rac1
{[%clk 0:02:22.7]} 15... Qb6 {[%clk 0:02:39.7]} 16. Be3 {[%clk 0:02:04.9]} 16...
Qa5 {[%clk 0:02:39.4]} 17. a3 {[%clk 0:01:54.8]} 17... a6 {[%clk 0:02:27.9]} 18.
Bxc6 {[%clk 0:01:44.5]} 18... bxc6 {[%clk 0:02:28]} 19. Rxc6 {[%clk 0:01:18.7]}
19... Be7 {[%clk 0:02:20.7]} 20. Bb6 {[%clk 0:01:14.3]} 20... Qd5 {[%clk
0:02:09]} 21. Rxc7 {[%clk 0:01:14.1]} 1-0

[Event "*** Titled Tuesday Blitz"]
[Site "Chess.com"]
[Date "2020.01.07"]
[Round "3"]
[White "ural58"]
[Black "liczner"]
[Result "0-1"]
[WhiteElo "2362"]
[BlackElo "2794"]
[TimeControl "180+2"]
[EndTime "13:34:57 PST"]
[Termination "liczner won by resignation"]

1. Nc3 {[%clk 0:02:52]} 1... d5 {[%clk 0:02:54.1]} 2. d4 {[%clk 0:02:51.9]} 2...
Nf6 {[%clk 0:02:54.5]} 3. Bf4 {[%clk 0:02:52.6]} 3... Bf5 {[%clk 0:02:49.4]} 4.
f3 {[%clk 0:02:52.4]} 4... Bg6 {[%clk 0:02:49.1]} 5. h4 {[%clk 0:02:50.3]} 5...
e6 {[%clk 0:02:47.1]} 6. g4 {[%clk 0:02:43.9]} 6... h6 {[%clk 0:02:42.6]} 7. e3
{[%clk 0:02:44]} 7... Bd6 {[%clk 0:02:40.1]} 8. Nh3 {[%clk 0:02:44.3]} 8... Nc6
{[%clk 0:02:25.4]} 9. Bxd6 {[%clk 0:02:35.4]} 9... Qxd6 {[%clk 0:02:22.1]} 10.
Nf4 {[%clk 0:02:36.9]} 10... Bh7 {[%clk 0:02:14]} 11. g5 {[%clk 0:02:35.9]}
11... Ng8 {[%clk 0:02:14.8]} 12. g6 {[%clk 0:02:35.7]} 12... Bxg6 {[%clk
0:02:15.4]} 13. Rg1 {[%clk 0:02:29.3]} 13... Nge7 {[%clk 0:02:00.5]} 14. h5
{[%clk 0:02:30]} 14... Bh7 {[%clk 0:01:57.5]} 15. Rxg7 {[%clk 0:02:29.6]} 15...
Nf5 {[%clk 0:01:56]} 16. Rxh7 {[%clk 0:02:24.9]} 16... Rxh7 {[%clk 0:01:57.9]}
17. Bd3 {[%clk 0:02:26]} 17... Nxe3 {[%clk 0:01:57.2]} 18. Qd2 {[%clk
0:02:03.4]} 18... Qxf4 {[%clk 0:01:55.4]} 19. Bxh7 {[%clk 0:02:04.1]} 19... Nxd4
{[%clk 0:01:54.1]} 20. Ne2 {[%clk 0:01:58.6]} 20... Qh4+ {[%clk 0:01:28.4]} 0-1

[Event "*** Titled Tuesday Blitz"]
[Site "Chess.com"]
[Date "2020.01.07"]
[Round "3"]
[White "crazy_machine"]
[Black "Glufs"]
[Result "1-0"]
[WhiteElo "2645"]
[BlackElo "2355"]
[TimeControl "180+2"]
[EndTime "13:35:03 PST"]
[Termination "crazy_machine won by resignation"]

1. e4 {[%clk 0:03:01.9]} 1... c6 {[%clk 0:03:00.7]} 2. d4 {[%clk 0:03:02.4]}
2... d5 {[%clk 0:03:01.8]} 3. e5 {[%clk 0:03:04]} 3... Bf5 {[%clk 0:03:02]} 4.
Bd3 {[%clk 0:03:05.6]} 4... Bxd3 {[%clk 0:03:01.9]} 5. Qxd3 {[%clk 0:03:07.5]}
5... e6 {[%clk 0:03:03]} 6. Nf3 {[%clk 0:03:07.2]} 6... c5 {[%clk 0:02:53.2]} 7.
c3 {[%clk 0:03:07.9]} 7... Nc6 {[%clk 0:02:51.8]} 8. O-O {[%clk 0:03:09.2]} 8...
Nge7 {[%clk 0:02:37.8]} 9. Nbd2 {[%clk 0:03:08.2]} 9... Nf5 {[%clk 0:02:35.4]}
10. Rd1 {[%clk 0:03:05]} 10... Be7 {[%clk 0:02:29.7]} 11. Nf1 {[%clk 0:03:06.5]}
11... O-O {[%clk 0:02:23.9]} 12. Ng3 {[%clk 0:03:07.6]} 12... Nxg3 {[%clk
0:02:22.2]} 13. hxg3 {[%clk 0:03:09.5]} 13... f6 {[%clk 0:02:21.5]} 14. exf6
{[%clk 0:03:10.2]} 14... Bxf6 {[%clk 0:02:22.2]} 15. dxc5 {[%clk 0:03:10.7]}
15... a5 {[%clk 0:02:15.5]} 16. Bf4 {[%clk 0:03:11.6]} 16... Re8 {[%clk
0:02:12]} 17. Bd6 {[%clk 0:03:12.3]} 17... b6 {[%clk 0:02:04.7]} 18. Nd4 {[%clk
0:03:12.4]} 18... Rc8 {[%clk 0:01:42.8]} 19. Qb5 {[%clk 0:02:45]} 19... Nxd4
{[%clk 0:01:31.3]} 20. cxd4 {[%clk 0:02:46.9]} 20... bxc5 {[%clk 0:01:25.1]} 21.
dxc5 {[%clk 0:02:48.8]} 21... h6 {[%clk 0:01:13.9]} 22. a3 {[%clk 0:02:44.4]}
22... d4 {[%clk 0:01:09.4]} 23. b4 {[%clk 0:02:45]} 23... axb4 {[%clk
0:01:08.5]} 24. axb4 {[%clk 0:02:46.9]} 24... e5 {[%clk 0:01:09]} 25. Ra7 {[%clk
0:02:48]} 25... Be7 {[%clk 0:00:52.5]} 26. Rd7 {[%clk 0:02:48.2]} 1-0